bitfinex/quotes_SOLUSD_20220117
["timestamp","ask_amount","ask_price","bid_price","bid_amount"]
[1642383105992,36.75169432,146.24,146.13,143.35054725]
[1642383106200,36.75169432,146.24,146.13,101.77512695]
[1642383106391,37.00169432,146.24,146.13,102.02512695]
[1642383106691,37.00169432,146.24,146.13,100.35]
[1642383106891,36.75169432,146.24,146.13,110.6112]
[1642383107092,36.75169432,146.24,146.14,40.98766808]
[1642383107293,36.75169432,146.24,146.14,41.24766808]
[1642383107491,36.75169432,146.24,146.14,48.48420147]
[1642383108194,36.75169432,146.24,146.14,48.22420147]
[1642383108398,36.75169432,146.24,146.14,6.25]
[1642383108800,36.75169432,146.24,146.14,0.25]
[1642383108996,37.00169432,146.24,146.14,6.25]
[1642383109199,37.00169432,146.24,146.14,6.0]
[1642383109400,37.00169432,146.24,146.14,48.57736339]
[1642383109599,37.00169432,146.24,146.14,42.57736339]
[1642383109846,37.00169432,146.24,146.14,48.57736339]
[1642383110002,37.00169432,146.24,146.14,6.25]
[1642383110400,37.00169432,146.24,146.14,0.25]
[1642383110601,36.50169432,146.24,146.14,6.25]
[1642383110800,36.50169432,146.24,146.14,6.0]
[1642383111000,36.50169432,146.24,146.14,6.25]
[1642383111204,36.50169432,146.24,146.14,0.25]
[1642383111401,42.50169432,146.24,146.14,6.25]
[1642383112002,42.50169432,146.24,146.14,0.25]
[1642383112203,42.50169432,146.24,146.13,100.35]
[1642383112406,60.59269432,146.24,146.13,100.35]
[1642383113705,62.2934702,146.24,146.11,10.2627]
[1642383113909,72.1334702,146.24,146.11,6.0]
[1642383114313,72.1334702,146.24,146.1,29.6433]
[1642383114510,72.1334702,146.24,146.1,6.0]
[1642383114910,72.1334702,146.24,146.09,41.2333]
[1642383115107,10.2647,146.2,146.09,16.264]
[1642383115307,17.4307,146.2,146.09,16.264]
[1642383115507,17.4307,146.2,146.09,6.0]
[1642383115907,25.13147588,146.2,146.08,7.67512695]
[1642383116110,48.9202782,146.19,146.08,1.67512695]
[1642383116308,49.1702782,146.19,146.08,6.25]
[1642383116707,49.1702782,146.19,146.08,84.4145]
[1642383116708,38.6546782,146.19,146.08,84.4145]
[1642383117335,38.6546782,146.19,146.08,16.2645]
[1642383117907,38.9046782,146.19,146.08,16.5145]
[1642383118107,38.6546782,146.19,146.08,84.6645]
[1642383118711,38.9046782,146.19,146.08,84.6645]
[1642383118909,38.9046782,146.19,146.08,16.5145]
[1642383119809,38.6546782,146.19,146.08,16.5145]
[1642383120012,38.9046782,146.19,146.08,16.2645]
[1642383120211,47.1256782,146.19,146.08,16.2645]
[1642383120611,47.3756782,146.19,146.07,25.49872695]
[1642383121013,47.3756782,146.19,146.07,1.67512695]
[1642383121812,47.3756782,146.19,146.07,1.92512695]
[1642383122113,47.3756782,146.19,146.07,6.0]
[1642383122312,47.3756782,146.19,146.06,16.266]
[1642383122515,77.99,146.18,146.06,16.266]
[1642383122812,9.84,146.18,146.06,6.0]
[1642383123011,10.09,146.18,146.06,6.0]
[1642383123214,10.09,146.18,146.05,7.67512695]
[1642383123411,10.09,146.18,146.05,7.92512695]
[1642383124415,10.2674,146.16,146.05,18.19212695]
[1642383124613,35.27480445,146.15,146.05,18.19212695]
[1642383124841,35.27480445,146.15,146.05,86.34212695]
[1642383125017,35.27480445,146.15,146.07,3.88064441]
[1642383125415,35.27480445,146.15,146.07,10.13064441]
[1642383126517,35.27480445,146.15,146.08,10.2644]
[1642383126918,35.27480445,146.15,146.08,16.5144]
[1642383127319,35.27480445,146.15,146.08,7.67512695]
[1642383127520,35.52480445,146.15,146.08,7.67512695]
[1642383128721,35.52480445,146.15,146.08,6.25]
[1642383128922,35.52480445,146.15,146.08,0.25]
[1642383129121,35.52480445,146.15,146.08,6.25]
[1642383129723,35.52480445,146.15,146.08,7.92512695]
[1642383129921,35.52480445,146.15,146.08,1.92512695]
[1642383130124,35.52480445,146.15,146.08,18.18992695]
[1642383131625,35.52480445,146.15,146.09,1.67512695]
[1642383132028,0.25,146.15,146.09,7.67512695]
[1642383132225,10.09,146.18,146.09,17.93922695]
[1642383132461,9.84,146.21,146.09,18.92576034]
[1642383132664,11.77725092,146.25,146.1,22.6073]
[1642383132856,17.77725092,146.25,146.1,29.1173]
[1642383133057,34.86483545,146.24,146.11,34.77439977]
[1642383133257,34.86483545,146.24,146.12,68.15]
[1642383133457,34.86483545,146.24,146.12,100.55513339]
[1642383133659,34.86483545,146.24,146.13,1.67512695]
[1642383133862,15.84,146.25,146.14,20.60553124]
[1642383134061,6.0,146.25,146.14,45.24163124]
[1642383134259,6.0,146.25,146.14,51.49163124]
[1642383134761,66.9356,146.28,146.14,51.49163124]
[1642383134959,46.98037296,146.27,146.15,1.67512695]
[1642383135358,47.23037296,146.27,146.17,10.2581]
[1642383135760,47.23037296,146.27,146.17,10.5081]
[1642383136064,47.23037296,146.27,146.17,12.18322695]
[1642383136458,47.23037296,146.27,146.17,45.97109333]
[1642383137258,47.23037296,146.27,146.17,51.97109333]
[1642383138059,47.23037296,146.27,146.17,18.18322695]
[1642383138459,46.98037296,146.27,146.2,10.2565]
[1642383138660,11.77725092,146.32,146.2,10.2565]
[1642383138863,11.77725092,146.32,146.2,84.6565]
[1642383139461,9.84,146.32,146.2,84.6565]
[1642383139662,44.88244109,146.31,146.21,43.08289522]
[1642383139864,44.88244109,146.31,146.22,10.2547]
[1642383140264,44.88244109,146.31,146.22,10.5047]
[1642383141365,45.13244109,146.31,146.22,10.5047]
[1642383142064,45.13244109,146.31,146.2,26.0963]
[1642383142265,52.39244109,146.31,146.21,0.25]
[1642383142465,52.39244109,146.31,146.2,6.0]
[1642383142664,52.39244109,146.31,146.2,6.25]
[1642383142867,62.64894109,146.31,146.2,6.0]
[1642383143067,68.15,146.29,146.18,1.67512695]
[1642383143268,9.84,146.28,146.16,1.67512695]
[1642383143467,68.15,146.27,146.16,1.67512695]
[1642383143669,79.69077588,146.27,146.16,1.67512695]
[1642383143870,79.94077588,146.27,146.16,1.67512695]
[1642383144071,45.20851388,146.26,146.12,34.05319609]
[1642383144276,38.00218847,146.22,146.12,44.31509609]
[1642383144671,38.25218847,146.22,146.12,44.31509609]
[1642383144872,38.25218847,146.22,146.12,44.56509609]
[1642383145271,38.00218847,146.22,146.12,42.88996914]
[1642383145871,38.00218847,146.22,146.12,10.5119]
[1642383146472,38.00218847,146.22,146.12,12.18702695]
[1642383146973,38.25218847,146.22,146.12,12.18702695]
[1642383147373,38.25218847,146.22,146.12,10.5119]
[1642383148172,38.25218847,146.22,146.12,12.18702695]
[1642383148582,48.51508847,146.22,146.12,1.92512695]
[1642383148972,48.51508847,146.22,146.11,1.67512695]
[1642383149374,48.26508847,146.22,146.11,1.92512695]
[1642383150376,48.26508847,146.22,146.11,12.18782695]
[1642383150779,48.51508847,146.22,146.11,12.18782695]
[1642383151376,48.26508847,146.22,146.11,1.92512695]
[1642383152380,68.15,146.21,146.11,1.67512695]
[1642383152580,10.2654,146.18,146.1,1.67512695]
[1642383152983,15.9924,146.18,146.1,1.92512695]
[1642383153183,39.72623881,146.17,146.1,1.92512695]
[1642383153383,39.97623881,146.17,146.1,1.92512695]
[1642383153583,39.97623881,146.17,146.1,0.25]
[1642383153984,39.97623881,146.17,146.09,23.5779]
[1642383154186,50.24233881,146.17,146.09,25.25302695]
[1642383154383,50.24233881,146.17,146.09,1.67512695]
[1642383154783,60.08233881,146.17,146.09,1.67512695]
[1642383154982,61.78311469,146.17,146.09,1.67512695]
[1642383155183,68.15,146.16,146.07,1.67512695]
[1642383155386,10.2705,146.14,146.07,1.67512695]
[1642383155584,17.9345,146.14,146.07,1.67512695]
[1642383155786,24.1845,146.14,146.07,1.67512695]
[1642383156284,37.50319493,146.13,146.04,1.67512695]
[1642383156484,36.26697699,146.1,146.04,1.67512695]
[1642383156886,36.51697699,146.1,146.04,1.67512695]
[1642383157085,36.51697699,146.1,146.04,1.92512695]
[1642383157990,46.78787699,146.1,146.04,1.92512695]
[1642383158636,46.78787699,146.1,146.04,0.25]
[1642383158825,46.78787699,146.1,146.03,1.92512695]
[1642383159027,46.53787699,146.1,146.03,1.92512695]
[1642383159427,10.2695,146.12,146.03,1.92512695]
[1642383159626,9.84,146.13,146.03,0.25]
[1642383159825,9.84,146.13,146.02,0.26]
[1642383160427,59.04789534,146.13,146.03,10.2682]
[1642383160627,59.04789534,146.13,146.04,32.2115151]
[1642383160826,49.20789534,146.13,146.04,32.4615151]
[1642383161129,49.20789534,146.13,146.04,106.6115151]
[1642383161827,49.20789534,146.13,146.04,108.28664205]
[1642383162427,49.20789534,146.13,146.05,10.2665]
[1642383162826,49.20789534,146.13,146.05,16.5165]
[1642383165128,49.45789534,146.13,146.05,10.5165]
[1642383165330,49.45789534,146.13,146.05,0.25]
[1642383165731,49.45789534,146.13,146.04,1.92512695]
[1642383166431,49.45789534,146.13,146.04,1.67512695]
[1642383166432,59.72669534,146.13,146.04,1.67512695]
[1642383166629,59.72669534,146.13,146.02,25.20952695]
[1642383166830,59.72669534,146.13,146.02,31.20952695]
[1642383167230,65.72669534,146.13,146.02,31.20952695]
[1642383167431,75.56669534,146.13,146.02,29.5344]
[1642383168433,75.56669534,146.13,146.02,29.7844]
[1642383172337,75.56669534,146.13,146.02,6.25]
[1642383172538,75.56669534,146.13,146.02,6.0]
[1642383172737,77.26747122,146.13,146.01,1.67512695]
[1642383172938,157.0,146.12,145.98,3.251228]
[1642383173135,9.84,146.11,145.98,9.251228]
[1642383173336,41.04082631,146.07,145.98,9.251228]
[1642383173535,49.52282631,146.07,145.98,9.251228]
[1642383173738,9.84,146.06,145.98,9.251228]
[1642383173937,10.09,146.06,145.98,6.0]
[1642383174335,10.09,146.06,145.98,0.25]
[1642383174538,10.2753,146.05,145.98,0.25]
[1642383174736,10.2753,146.05,145.96,6.25]
[1642383174937,10.5253,146.05,145.96,0.25]
[1642383175140,10.5253,146.05,145.95,0.25]
[1642383175338,35.30779861,146.04,145.95,6.25]
[1642383175539,41.48779861,146.04,145.95,6.0]
[1642383175737,41.73779861,146.04,145.95,6.25]
[1642383176438,45.83289861,146.04,145.95,6.25]
[1642383176643,35.30779861,146.04,145.95,36.97569585]
[1642383176839,35.30779861,146.04,145.95,42.97569585]
[1642383177040,35.30779861,146.04,145.96,0.26]
[1642383177440,9.84,146.06,145.98,10.2715]
[1642383177840,9.84,146.06,145.98,16.5215]
[1642383178443,48.64298361,146.07,145.98,25.60422873]
[1642383180344,48.64298361,146.07,145.98,25.35422873]
[1642383181650,48.64298361,146.07,145.98,25.60422873]
[1642383182049,9.84,146.09,145.98,25.60422873]
[1642383182249,9.84,146.14,146.02,10.2684]
[1642383182450,11.00878822,146.18,146.02,20.3584]
[1642383182648,11.00878822,146.18,146.03,23.9538]
[1642383182950,43.25220778,146.17,146.04,35.21184289]
[1642383183350,43.25220778,146.17,146.07,10.2652]
[1642383183753,43.25220778,146.17,146.07,16.5152]
[1642383187186,43.25220778,146.17,146.07,27.11178169]
[1642383187587,43.25220778,146.17,146.08,0.98577114]
[1642383187789,43.25220778,146.17,146.1,10.2621]
[1642383187989,43.25220778,146.17,146.1,45.47394289]
[1642383188190,43.25220778,146.17,146.1,17.49787114]
[1642383189289,43.25220778,146.17,146.1,16.5121]
[1642383192594,20.102,146.23,146.1,84.6621]
[1642383192798,9.84,146.28,146.15,68.15]
[1642383192998,9.84,146.28,146.16,91.1245]
[1642383193398,9.84,146.28,146.16,97.3745]
[1642383193697,38.1544015,146.27,146.16,97.3745]
[1642383194106,38.4044015,146.27,146.16,97.3745]
[1642383194499,38.1544015,146.27,146.18,10.258]
[1642383194700,39.85517738,146.27,146.16,29.2245]
[1642383194905,45.85517738,146.27,146.16,29.2245]
[1642383195099,38.1544015,146.27,146.16,29.2245]
[1642383196504,48.4135015,146.27,146.16,29.2245]
[1642383196902,48.6635015,146.27,146.16,29.2245]
[1642383197704,118.51427738,146.27,146.16,6.25]
[1642383197905,10.2632,146.23,146.14,6.0]
[1642383198105,10.2632,146.23,146.13,24.4941]
[1642383198305,10.5132,146.23,146.13,24.4941]
[1642383198707,44.43216712,146.22,146.13,24.4941]
[1642383198906,44.68216712,146.22,146.13,24.4941]
[1642383199107,10.2635,146.21,146.12,23.678]
[1642383199308,19.3975,146.21,146.12,6.0]
[1642383199607,99.08827588,146.21,146.07,6.0]
[1642383199811,99.08827588,146.21,146.04,15.84]
[1642383200408,99.08827588,146.21,146.06,10.2661]
[1642383200908,99.08827588,146.21,146.06,6.25]
[1642383201208,99.08827588,146.21,146.06,6.0]
[1642383201413,99.08827588,146.21,146.04,15.84]
[1642383201707,99.08827588,146.21,146.04,9.84]
[1642383202417,99.08827588,146.21,146.04,20.1074]
[1642383202612,99.08827588,146.21,146.04,20.3574]
[1642383203010,99.08827588,146.21,146.05,23.7731]
[1642383203410,105.08827588,146.21,146.05,24.0231]
[1642383203637,105.08827588,146.21,146.05,34.2901]
[1642383203809,105.08827588,146.21,146.05,47.19980015]
[1642383204010,105.08827588,146.21,146.05,34.0401]
[1642383205313,105.08827588,146.21,146.05,34.2901]
[1642383206711,10.2693,146.16,146.05,0.25]
[1642383206911,48.28716291,146.15,146.03,24.8808]
[1642383207312,48.53716291,146.15,146.03,0.25]
[1642383207714,48.53716291,146.15,146.01,29.1473]
[1642383208416,10.2695,146.12,146.01,39.4168]
[1642383208615,42.2873214,146.11,146.01,39.4168]
[1642383208816,42.5373214,146.11,146.01,39.4168]
[1642383211519,52.8074214,146.11,146.01,39.4168]
[1642383213423,42.2873214,146.11,146.01,39.4168]
[1642383213622,42.2873214,146.11,146.02,33.37609684]
[1642383213822,42.2873214,146.11,146.04,10.2665]
[1642383214224,9.84,146.16,146.04,16.5165]
[1642383214425,9.84,146.16,146.04,41.3413]
[1642383214624,9.84,146.19,146.04,41.3413]
[1642383215025,10.09,146.19,146.04,41.3413]
[1642383215229,42.39586619,146.18,146.05,80.58232774]
[1642383215425,10.2661,146.17,146.08,10.2648]
[1642383215824,0.25,146.17,146.08,10.5148]
[1642383216824,42.64586619,146.18,146.08,10.5148]
[1642383217527,52.91116619,146.18,146.08,10.5148]
[1642383217926,52.91116619,146.18,146.06,34.6027]
[1642383218128,64.45194207,146.18,146.06,6.25]
[1642383219056,64.45194207,146.18,146.06,0.25]
[1642383219455,64.45194207,146.18,146.05,10.5168]
[1642383219858,70.45194207,146.18,146.05,10.5168]
[1642383221557,68.15,146.17,146.05,0.25]
[1642383221757,10.2698,146.14,146.05,0.25]
[1642383221957,41.3742488,146.13,146.0,47.9779]
[1642383222158,43.07502468,146.13,146.0,47.9779]
[1642383222359,43.32502468,146.13,146.0,47.9779]
[1642383222560,9.84,146.12,146.0,23.0241]
[1642383222760,10.2712,146.1,146.0,22.7741]
[1642383223065,35.71225319,146.09,146.0,22.7741]
[1642383223462,37.66302907,146.09,146.0,22.7741]
[1642383223663,1.70077588,146.08,146.0,22.7741]
[1642383223862,1.95077588,146.08,146.0,22.7741]
[1642383224264,1.95077588,146.08,146.0,23.0241]
[1642383224462,10.2733,146.07,146.0,23.0241]
[1642383224662,41.82025776,146.06,146.0,23.0241]
[1642383224962,41.82025776,146.06,146.0,0.25]
[1642383225362,41.82025776,146.06,145.99,29.4956]
[1642383226165,41.82025776,146.06,145.99,23.4956]
[1642383226362,41.82025776,146.06,145.99,29.4956]
[1642383226566,59.77495776,146.06,145.99,0.25]
[1642383226765,59.77495776,146.06,145.96,30.741]
[1642383226963,61.47573364,146.06,145.96,30.741]
[1642383227164,67.47573364,146.06,145.96,30.741]
[1642383227466,135.62573364,146.06,145.96,6.0]
[1642383227663,9.84,146.05,145.96,6.0]
[1642383227964,40.67592369,146.02,145.95,9.251228]
[1642383228166,40.67592369,146.02,145.95,3.251228]
[1642383228363,40.67592369,146.02,145.95,6.0]
[1642383228763,40.92592369,146.02,145.95,6.0]
[1642383228963,40.92592369,146.02,145.91,9.251228]
[1642383229163,40.67592369,146.02,145.91,3.251228]
[1642383229364,40.92592369,146.02,145.91,9.251228]
[1642383229665,40.92592369,146.02,145.91,6.0]
[1642383229964,40.92592369,146.02,145.91,0.25]
[1642383230563,51.20242369,146.02,145.92,10.276]
[1642383230964,50.95242369,146.02,145.92,16.526]
[1642383231364,51.20242369,146.02,145.92,16.526]
[1642383231564,50.95242369,146.02,145.92,19.04886275]
[1642383232264,40.67592369,146.02,145.92,87.19886275]
[1642383232464,10.2748,146.04,145.92,87.19886275]
[1642383232664,9.84,146.05,145.93,0.26]
[1642383232863,9.84,146.05,145.96,10.2732]
[1642383233066,34.2494,146.08,145.96,10.2732]
[1642383233267,44.0894,146.08,145.96,16.5232]
[1642383233466,49.51935456,146.07,145.96,16.5232]
[1642383233868,49.76935456,146.07,145.96,16.5232]
[1642383234467,41.61874175,146.04,145.96,16.5232]
[1642383235368,50.0894,146.08,145.96,16.5232]
[1642383235369,15.84,146.08,145.96,16.5232]
[1642383235569,46.3253,146.1,145.96,117.6725]
[1642383235772,9.84,146.12,145.96,117.6725]
[1642383235975,10.09,146.12,146.01,10.27]
[1642383236176,15.84,146.12,146.01,10.27]
[1642383236472,42.85989513,146.11,146.01,16.52]
[1642383237670,53.38009513,146.11,146.01,16.52]
[1642383239772,53.13009513,146.11,146.01,16.52]
[1642383240879,59.13009513,146.11,146.01,16.52]
[1642383241076,59.38009513,146.11,146.01,16.52]
[1642383242272,53.38009513,146.11,146.01,16.27]
[1642383242472,53.38009513,146.11,145.99,58.4676]
[1642383242674,11.54077588,146.1,145.99,58.4676]
[1642383242873,10.272,146.08,145.99,58.4676]
[1642383243072,10.272,146.08,145.95,26.096028]
[1642383243273,10.522,146.08,145.95,51.8734]
[1642383243476,36.27933958,146.07,145.97,10.2724]
[1642383243874,36.52933958,146.07,145.97,16.2724]
[1642383244474,46.80223958,146.07,145.97,16.2724]
[1642383244675,52.80223958,146.07,145.97,16.5224]
[1642383246876,52.55223958,146.07,145.97,16.5224]
[1642383248880,52.80223958,146.07,145.97,16.5224]
[1642383250985,52.55223958,146.07,145.97,16.5224]
[1642383251194,52.80223958,146.07,145.97,16.5224]
[1642383252410,42.52933958,146.07,145.97,16.5224]
[1642383253011,42.27933958,146.07,145.98,11.48422679]
[1642383253212,36.27933958,146.07,146.0,10.2694]
[1642383253511,36.27933958,146.07,146.0,16.5194]
[1642383253713,34.2375,146.13,146.0,16.5194]
[1642383253911,10.2701,146.11,146.01,24.7114]
[1642383254311,10.2701,146.11,146.01,30.9614]
[1642383254713,10.2701,146.11,146.01,24.9614]
[1642383254913,11.97087588,146.11,146.01,24.7114]
[1642383255414,12.22087588,146.11,146.01,24.7114]
[1642383255616,40.68847543,146.1,146.01,24.7114]
[1642383255816,37.4249781,146.07,146.01,24.7114]
[1642383256215,37.6749781,146.07,146.01,24.9614]
[1642383256614,37.6749781,146.07,146.01,0.25]
[1642383256815,37.6749781,146.07,145.99,30.9221]
[1642383257015,47.9478781,146.07,145.99,30.9221]
[1642383257215,53.9478781,146.07,145.99,24.9221]
[1642383257416,53.9478781,146.07,145.99,24.6721]
[1642383257615,9.84,146.06,145.94,3.251228]
[1642383257817,68.15,146.05,145.94,3.251228]
[1642383258016,9.84,146.04,145.94,3.251228]
[1642383258215,11.54077588,146.04,145.94,3.251228]
[1642383258417,11.79077588,146.04,145.9,3.251228]
[1642383258618,42.45358421,146.03,145.9,3.251228]
[1642383258819,57.84158421,146.03,145.9,3.251228]
[1642383259017,58.09158421,146.03,145.9,3.251228]
[1642383259218,68.36918421,146.03,145.9,19.778528]
[1642383259417,68.36918421,146.03,145.9,20.42169752]
[1642383259819,68.36918421,146.03,145.91,23.4736]
[1642383260320,68.36918421,146.03,145.91,29.7236]
[1642383260922,74.36918421,146.03,145.91,29.7236]
[1642383261326,74.36918421,146.03,145.91,40.0001]
[1642383261722,74.36918421,146.03,145.91,50.57474652]
[1642383261922,74.36918421,146.03,145.91,40.0001]
[1642383263523,68.57118421,146.03,145.91,40.0001]
[1642383263725,52.29358421,146.03,145.91,16.2765]
[1642383263926,52.54358421,146.03,145.91,16.2765]
[1642383264624,52.29358421,146.03,145.91,16.2765]
[1642383264823,52.29358421,146.03,145.92,68.15]
[1642383265025,52.29358421,146.03,145.94,10.2741]
[1642383265225,39.12858421,146.03,145.95,3.36864796]
[1642383265425,24.9644,146.07,145.95,9.61864796]
[1642383265625,24.9644,146.07,145.95,32.12364796]
[1642383265827,1.70077588,146.1,145.96,0.26]
[1642383266028,13.71676718,146.12,145.96,10.1]
[1642383266228,13.71676718,146.12,145.97,92.6424]
[1642383266433,41.58580176,146.11,146.01,10.2696]
[1642383266828,41.58580176,146.11,146.01,16.5196]
[1642383267036,41.58580176,146.11,146.01,23.79086767]
[1642383268432,41.83580176,146.11,146.01,23.79086767]
[1642383269632,41.83580176,146.11,146.01,16.5196]
[1642383273238,41.83580176,146.11,146.02,7.55219657]
[1642383273441,41.83580176,146.11,146.02,13.80219657]
[1642383273739,41.83580176,146.11,146.02,24.07099657]
[1642383275342,41.83580176,146.11,146.02,16.5188]
[1642383275738,41.58580176,146.11,146.02,16.5188]
[1642383276339,58.10560176,146.11,146.02,6.25]
[1642383276540,58.10560176,146.11,146.02,0.25]
[1642383276944,58.10560176,146.11,146.01,24.2957]
[1642383277742,58.10560176,146.11,146.01,24.0457]
[1642383277939,69.64637764,146.11,145.99,23.5262]
[1642383278140,69.64637764,146.11,145.99,29.5262]
[1642383278968,69.64637764,146.11,145.99,29.7762]
[1642383279869,69.64637764,146.11,145.99,36.05900856]
[1642383280071,67.94560176,146.11,146.0,24.3753]
[1642383280272,67.94560176,146.11,146.0,23.3753]
[1642383280471,67.94560176,146.11,146.0,29.6253]
[1642383280870,67.69560176,146.11,146.0,29.6253]
[1642383282075,67.94560176,146.11,146.0,29.6253]
[1642383282475,61.94560176,146.11,146.0,29.6253]
[1642383286387,69.64637764,146.11,146.0,0.25]
[1642383286587,10.2743,146.07,146.0,0.25]
[1642383286785,17.1083,146.07,145.99,0.25]
[1642383286986,43.27147939,146.06,145.99,0.25]
[1642383287190,43.27147939,146.06,145.94,23.4464]
[1642383287386,43.52147939,146.06,145.95,10.2736]
[1642383287886,43.27147939,146.06,145.95,16.2736]
[1642383288288,43.27147939,146.06,145.95,52.93110197]
[1642383288488,10.2744,146.05,145.95,52.93110197]
[1642383288686,10.2744,146.05,145.95,53.18110197]
[1642383289089,10.2744,146.05,145.95,16.5236]
[1642383289288,16.2844,146.05,145.95,6.0]
[1642383289488,27.82517588,146.05,145.95,6.25]
[1642383289690,26.1244,146.05,145.95,0.25]
[1642383290289,94.2744,146.05,145.94,6.0]
[1642383290690,94.2744,146.05,145.89,29.369028]
[1642383290895,118.4333,146.05,145.89,26.1178]
[1642383291291,50.2833,146.05,145.9,38.29968962]
[1642383291594,50.2833,146.05,145.91,10.2765]
[1642383291993,56.2833,146.05,145.92,23.865]
[1642383292396,50.2833,146.05,145.93,10.83373495]
[1642383292593,50.2833,146.05,145.92,52.9709]
[1642383292594,50.0333,146.05,145.92,52.9709]
[1642383293495,50.0333,146.05,145.92,63.2466]
[1642383293994,50.2833,146.05,145.92,63.2466]
[1642383295696,50.2833,146.05,145.92,65.18930014]
[1642383296497,50.2833,146.05,145.92,52.9709]
[1642383296698,124.4333,146.05,145.92,52.9709]
[1642383297301,124.4333,146.05,145.92,46.9709]
[1642383299600,56.2833,146.05,145.92,46.9709]
[1642383299801,56.2833,146.05,145.92,52.9709]
[1642383300807,50.2833,146.05,145.92,52.9709]
[1642383301007,50.0333,146.05,145.92,52.9709]
[1642383301402,50.0333,146.05,145.92,63.2466]
[1642383301603,50.0333,146.05,145.93,13.71302873]
[1642383301604,44.2733,146.05,145.93,13.71302873]
[1642383301904,44.2733,146.05,145.93,19.96302873]
[1642383302306,44.2733,146.05,145.94,23.0542]
[1642383302604,33.9989,146.05,145.95,10.2735]
[1642383302804,33.9989,146.05,145.96,35.42039584]
[1642383302805,34.2489,146.05,145.96,35.42039584]
[1642383303002,10.09,146.05,145.96,35.42039584]
[1642383303206,10.09,146.05,145.96,41.67039584]
[1642383303603,43.27147939,146.06,145.96,41.67039584]
[1642383303805,42.36747939,146.06,145.97,10.2722]
[1642383304204,42.36747939,146.06,145.97,16.5222]
[1642383305207,1.48415028,146.07,145.97,16.5222]
[1642383305405,11.72689806,146.1,145.97,39.1834]
[1642383305806,11.72689806,146.1,145.99,10.2703]
[1642383306006,9.84,146.1,145.99,10.2703]
[1642383306211,40.01594378,146.09,146.0,14.61702874]
[1642383306407,40.01594378,146.09,146.0,20.86702874]
[1642383306609,40.26594378,146.09,146.0,6.25]
[1642383306808,40.01594378,146.09,146.0,6.25]
[1642383307207,40.01594378,146.09,146.0,0.25]
[1642383307408,40.01594378,146.09,146.0,6.25]
[1642383307608,40.01594378,146.09,146.0,6.0]
[1642383307807,40.01594378,146.09,146.0,6.25]
[1642383308106,40.01594378,146.09,146.0,0.25]
[1642383308307,40.26594378,146.09,146.0,6.25]
[1642383308507,50.53734378,146.09,146.0,6.25]
[1642383308908,50.28734378,146.09,146.0,6.25]
[1642383309911,50.28734378,146.09,146.0,0.25]
[1642383310109,50.28734378,146.09,145.99,30.3709]
[1642383311213,50.28734378,146.09,145.99,40.6416]
[1642383315418,50.53734378,146.09,145.99,30.3709]
[1642383316016,50.28734378,146.09,145.99,30.3709]
[1642383316515,50.53734378,146.09,145.99,30.3709]
[1642383317818,50.53734378,146.09,145.99,24.3709]
[1642383318023,52.23811966,146.09,145.99,24.3709]
[1642383318217,9.84,146.08,145.99,24.3709]
[1642383318417,10.2738,146.06,145.99,24.3709]
[1642383318618,39.27374664,146.05,145.99,24.3709]
[1642383319818,39.27374664,146.05,145.99,30.3709]
[1642383320048,39.27374664,146.05,145.99,24.1209]
[1642383320247,39.27374664,146.05,145.97,23.7598]
[1642383320448,39.27374664,146.05,145.97,30.0098]
[1642383320652,49.54794664,146.05,145.97,30.0098]
[1642383320850,49.79794664,146.05,145.97,29.7598]
[1642383321053,55.42794664,146.05,145.97,6.0]
[1642383321252,66.96872252,146.05,145.94,1.94270014]
[1642383322355,66.96872252,146.05,145.94,2.19270014]
[1642383322552,66.96872252,146.05,145.94,0.25]
[1642383322954,66.96872252,146.05,145.92,6.0]
[1642383323156,66.96872252,146.05,145.91,8.19270014]
[1642383323355,90.90292252,146.05,145.92,22.7133]
[1642383323755,92.78982058,146.05,145.92,28.7133]
[1642383323956,98.78982058,146.05,145.92,22.7133]
[1642383324456,98.78982058,146.05,145.92,22.9633]
[1642383324756,96.90292252,146.05,145.92,22.9633]